Cogmind - Beta 14 @@@ ROGUE MODE // 2024.09.23 @ 17:56:16 Player: BionicBot Result: Destroyed by Y-54 Guardian with Flak Gun Performance ------------- Evolutions (3) 1500 Regions Visited (7) 1400 Robots Destroyed (155) 775 Value Destroyed (5846) 5846 Prototype IDs (5) 100 Alien Tech Used (0) 0 Bonus (1697) 1697 TOTAL SCORE: 11318 Bonus ------- High Alert Combat Kills 172 Follower Combat Kills 135 Entered Garrisons 400 Used RIF Installer 1000 Friendly Fire -10 Cogmind --------- Core Integrity 0/700 Matter 87/300 Energy 100/100 System Corruption 7% Temperature Cool (12) Movement Core (50) Location -7/Garrison Parts ------- > --- POWER (1) -------- (None) > --- PROPULSION (3) --- (None) > --- UTILITY (7) ------ (None) > --- WEAPON (2) ------- (None) > --- INVENTORY (5) ---- Improved Deuterium Engine Improved Sensor Array Improved Signal Interpreter Relay Coupler [Swarmer] (42) Remote Datajack Peak State ------------ > --- POWER ------------ Micro Nuclear Core > --- PROPULSION ------- Wheel Armored Huge Wheel > --- UTILITY ---------- Improved Heat Sink Huge Storage Unit Core Analyzer Improved Weapon Shielding Hardened Medium Armor Plating Improved Light Armor Plating Insulated Plating > --- WEAPON ----------- High-powered Shotgun High-powered Shotgun > --- INVENTORY -------- Improved Deuterium Engine Wheel Compact Wheel Compact Matter Pod Structural Scanner Improved Sensor Array Improved Light Armor Plating Improved Light Armor Plating Improved Light Armor Plating Insulated Plating Hacking Suite Hacking Suite Gauss Rifle Grenade Launcher Improved Grenade Launcher Improved Datajack Remote Datajack Greatsword [Rating: 44] Favorites ----------- Power Micro Nuclear Core Engine Deuterium Engine Power Core Micro Nuclear Core Propulsion Armored Treads Treads Armored Treads Leg Aluminum Leg Wheel Armored Wheel Utility Improved Light Armor Plating Device Improved Heat Sink Storage Huge Storage Unit Processor Core Analyzer Hackware Hacking Suite Protection Improved Light Armor Plating Weapon Improved Assault Rifle Energy Gun Medium Laser Ballistic Gun Improved Assault Rifle Launcher Grenade Launcher Special Weapon Remote Datajack Slashing Weapon Greatsword Special Melee Weapon Improved Datajack Build | -11 -10 -9 -8 -7 -7 -7 -7 ------- Run | Yrd Mat Mat Mat Fac Gar Fac Gar Slots Evolved 6 | . . 2 2 2 . . . Power . | . . . . . . . . Propulsion 1 | . . 1 . . . . . Utility 5 | . . 1 2 2 . . . Weapon . | . . . . . . . . Parts Attached 153 | 8 7 23 36 26 14 15 24 Power 10 | 1 . 3 4 1 . 1 . Engine 5 | 1 . 3 . . . 1 . Core 5 | . . . 4 1 . . . Reactor . | . . . . . . . . Propulsion 36 | 2 . 10 8 4 3 3 6 Treads 12 | 2 . 10 . . . . . Leg 5 | . . . . . 3 . 2 Wheel 19 | . . . 8 4 . 3 4 Hover . | . . . . . . . . Flight . | . . . . . . . . Utility 54 | 2 1 4 16 15 6 5 5 Device 7 | 1 . . 1 2 2 1 . Storage 4 | 1 1 . 2 . . . . Processor 4 | . . . 1 1 . . 2 Hackware 6 | . . . . 1 . 3 2 Protection 33 | . . 4 12 11 4 1 1 Artifact . | . . . . . . . . Weapon 53 | 3 6 6 8 6 5 6 13 Energy Gun 2 | 1 . 1 . . . . . Energy Cannon . | . . . . . . . . Ballistic Gun 35 | 2 3 5 8 4 4 3 6 Ballistic Cannon . | . . . . . . . . Launcher 5 | . 3 . . . . . 2 Special Weapon 4 | . . . . . . 2 2 Impact Weapon . | . . . . . . . . Slashing Weapon 5 | . . . . 2 1 . 2 Piercing Weapon . | . . . . . . . . Special Melee Weapon 2 | . . . . . . 1 1 Unidentified Prototypes 3 | . . 2 1 . . . . Parts Lost 46 | . . 3 4 11 8 4 16 Power 2 | . . . . 1 . . 1 Propulsion 13 | . . . 1 3 2 1 6 Utility 21 | . . 2 3 5 6 2 3 Weapon 10 | . . 1 . 2 . 1 6 Highest Loss Streak 8 | . . 2 2 3 4 2 8 To Critical Strikes 1 | . . 1 . . . . . Average Slot Usage (%) 92 | . 100 94 96 93 82 96 79 Engine 4 | . 14 11 2 . . 2 4 Core 4 | . . . 6 6 7 4 . Treads 11 | . 28 32 13 . . . . Leg 2 | . . . . . 9 12 . Wheel 8 | . . . 13 16 3 8 15 Device 7 | . 14 5 8 7 7 8 4 Storage 8 | . 14 11 9 7 7 7 7 Processor 4 | . . . . 7 7 7 15 Hackware 2 | . . . . 1 . 17 12 Protection 17 | . . 11 24 27 23 10 6 Ballistic Gun 17 | . 27 21 17 14 13 13 6 Peak Build Rating 44 | 7 9 23 36 44 44 41 41 Average Rating 29 | 5 7 18 30 39 38 39 32 On Entrance 22 | . 7 9 23 31 44 34 35 Naked Turns 3 | . . . . . . . 3 Heaviest Build 110 | 15 31 41 107 110 107 110 109 Greatest Support 60 | 40 40 60 60 40 38 36 42 Greatest Overweight (x) 34 | 4 . 2 8 9 34 10 7 Average Overweight (x) 1 | . . . 1 2 3 4 3 Largest Inventory Capacity 25 | 8 15 15 25 25 25 25 25 Average Capacity 20 | 7 14 15 19 25 25 25 24 Most Carried 25 | 4 15 15 18 19 21 25 24 Average Carried 16 | 2 11 14 15 15 19 21 21 Final Capacity 25 | 8 15 15 25 25 25 25 5 Final Carried 24 | 4 15 15 16 19 21 24 5 Class Distribution -------------------- 72% | Mutant 16% | Scavenger-Mutant 10% | Bothacker-Mutant Dominant Class ---------------- Mutant | -10/Materials Mutant | -9/Materials Mutant | -8/Materials Mutant | -7/Factory Scavenger-Mutant | -7/Garrison Scavenger-Mutant | -7/Factory Bothacker-Mutant | -7/Garrison Resources | -11 -10 -9 -8 -7 -7 -7 -7 ----------- Run | Yrd Mat Mat Mat Fac Gar Fac Gar Matter Collected 5176 | 289 641 985 1093 813 488 407 460 Remotely . | . . . . . . . . Salvage Created 6678 | 89 737 1296 1631 1049 435 500 941 Parts 366 | 9 39 83 92 58 19 29 37 Haulers Intercepted 5 | . 2 1 2 . . . . Recyclers Shooed 8 | 2 2 . 2 2 . . . Parts Field Recycled . | . . . . . . . . Retrieved Matter . | . . . . . . . . Parts Self-Destructed . | . . . . . . . . Prevented . | . . . . . . . . Kills | -11 -10 -9 -8 -7 -7 -7 -7 ------- Run | Yrd Mat Mat Mat Fac Gar Fac Gar Combat Hostiles Destroyed 109 | . 13 22 24 17 11 9 13 Guns 99 | . 7 22 24 17 11 9 9 AOE 10 | . 6 . . . . . 4 Classes Destroyed 13 | 2 6 3 1 1 . . . Worker 10 | . 1 2 1 5 . 1 . Tunneler 4 | 2 . 1 . . . 1 . Hauler 5 | . 2 1 2 . . . . Recycler 13 | 1 2 2 2 4 . 2 . Operator 7 | . 2 2 1 2 . . . Watcher 7 | . 1 2 2 1 . 1 . Swarmer 22 | . 3 . . 9 3 3 4 Grunt 60 | . 10 13 15 3 6 4 9 Brawler 2 | . . 2 . . . . . Duelist 1 | . . 1 . . . . . Sentry 17 | . . 6 8 1 2 . . Hunter 2 | . . . 1 1 . . . Programmer 5 | . . . . 3 . 2 . Best Kill Streak 10 | 2 5 5 4 4 2 8 10 Combat Bots Only 10 | . 3 4 3 3 2 5 10 Max Kills in Single Turn 2 | 1 2 1 1 2 1 2 2 Gunslinging . | . . . . . . . . Exploded 2 | . 2 . . . . . 2 Melee . | . . . . . . . . Uniques/NPCs Destroyed . | . . . . . . . . Combat | -11 -10 -9 -8 -7 -7 -7 -7 -------- Run | Yrd Mat Mat Mat Fac Gar Fac Gar Hostile Shots Fired 899 | . 65 74 175 156 165 100 164 Missed 255 | . 17 23 45 44 52 29 45 Damage Taken 8408 | . 543 779 2047 1589 1090 730 1630 Core 1120 | . 120 91 208 144 60 71 426 Absorbed by Shields 284 | . . . . . . 134 150 Redirected to Shielding 241 | . . . 107 . 107 . 27 Ignored by Resistances 15 | . . . . 15 . . . Core Remaining (%) 72 | 100 52 77 62 . . . . Volleys Fired 477 | 8 62 83 115 93 33 44 39 Largest 2 | 2 2 2 2 2 2 2 2 Hottest 56 | 40 50 46 48 50 56 56 53 Shots Fired 920 | 16 114 167 230 186 67 78 62 Gun 893 | 16 107 167 230 186 67 70 50 Cannon . | . . . . . . . . Launcher 15 | . 7 . . . . . 8 Special 12 | . . . . . . 8 4 Kinetic 893 | 16 107 167 230 186 67 70 50 Thermal . | . . . . . . . . Explosive 15 | . 7 . . . . . 8 Electromagnetic . | . . . . . . . . Robot Hit Streak 31 | 6 12 21 31 19 9 8 11 Robot Miss Streak 14 | 2 3 3 4 9 14 5 5 Penetration Max 1 | . . . . . . 1 . Secondary Targets 8 | . . 2 2 1 3 . . Max Gunslinging Chain 1 | . . 1 1 1 1 . . Shots Hit Robots 690 | 10 71 128 181 133 46 56 65 Core Hits 347 | 4 38 51 67 51 38 47 51 Critical Kills 5 | . 1 1 1 1 . 1 . Critical Parts Destroyed 6 | . 1 . . 4 1 . . Critical Strikes 12 | . 2 1 1 5 1 1 1 Destroy 11 | . 2 1 1 5 1 1 . Sever 1 | . . . . . . . 1 Melee Attacks 25 | . . . . 5 1 . 19 Impact . | . . . . . . . . Slashing 25 | . . . . 5 1 . 19 Piercing . | . . . . . . . . Sneak Attacks . | . . . . . . . . Combat Hostiles . | . . . . . . . . Follow-up Attacks . | . . . . . . . . Damage Inflicted 13073 | 122 1466 1843 2844 2228 821 900 2849 Guns 10281 | 122 846 1837 2834 2228 821 900 693 Cannons . | . . . . . . . . Explosions 1217 | . 620 . . . . . 597 Melee 1559 | . . . . . . . 1559 Ramming 16 | . . 6 10 . . . . Kinetic 10281 | 122 846 1837 2834 2228 821 900 693 Thermal . | . . . . . . . . Explosive 1217 | . 620 . . . . . 597 Electromagnetic . | . . . . . . . . Impact . | . . . . . . . . Slashing 1559 | . . . . . . . 1559 Piercing . | . . . . . . . . Highest Corruption 7 | . . 5 . 4 4 7 7 Average Corruption 4 | . . 5 . 2 4 5 7 Corruption Purged . | . . . . . . . . Corruption Blocked . | . . . . . . . . Effects 103 | . . 24 . 17 20 25 17 Message Errors 27 | . . 2 . 6 5 8 6 Matter Fused 24 | . . 8 . 4 1 5 6 Heat Flow Errors 12 | . . 2 . 1 3 4 2 Energy Discharges 5 | . . . . 2 2 . 1 Parts Fused 4 | . . 1 . 1 1 1 . Data Loss (minor) 15 | . . 3 . 2 3 5 2 Data Loss (major) 7 | . . 2 . 1 3 1 . Misfires 6 | . . 3 . . 2 1 . Alerts 1 | . . 1 . . . . . Weapon Failures 2 | . . 2 . . . . . Overload Shots . | . . . . . . . . Overflow Damage 102 | . . . . . . . 102 Projectiles . | . . . . . . . . Explosions 36 | . . . . . . . 36 Melee 66 | . . . . . . . 66 Knockbacks 2 | . . . 2 . . . . Impact 2 | . . . 2 . . . . Kinetic . | . . . . . . . . Secondary . | . . . . . . . . Self-Inflicted Damage 41 | . 7 . 2 . . . 32 Shots 3 | . 1 . . . . . 2 Rammed 4 | . . 2 2 . . . . Targets Rammed 6 | . . 3 3 . . . . Kicked . | . . . . . . . . Crushed 2 | . . 1 1 . . . . Highest Temperature 257 | . 5 231 34 257 201 179 182 Average Temperature 52 | . 2 62 7 124 70 71 45 Received Heat Transfer 2688 | . 270 240 981 216 363 115 503 Siege Activations . | . . . . . . . . Robots Corrupted . | . . . . . . . . Combat Hostiles . | . . . . . . . . Parts Fried . | . . . . . . . . Impact Corruptions . | . . . . . . . . Robots Melted . | . . . . . . . . Combat Hostiles . | . . . . . . . . Parts Melted . | . . . . . . . . Heat Transferred . | . . . . . . . . Parts Sabotaged . | . . . . . . . . Parts Stolen . | . . . . . . . . Parts Stripped . | . . . . . . . . Power Chain Reactions . | . . . . . . . . Alert | -11 -10 -9 -8 -7 -7 -7 -7 ------- Run | Yrd Mat Mat Mat Fac Gar Fac Gar Peak Influence 589 | 15 255 414 556 493 589 340 458 Initial 308 | . 9 107 160 252 139 308 68 Average 250 | 5 134 265 293 280 331 130 246 Maximum Alert Level 2 | . 1 2 2 2 2 1 2 Low Security (%) 32 | 100 67 25 29 13 10 69 37 Level 1 52 | . 32 71 42 68 61 30 51 Level 2 14 | . . 3 27 18 28 . 10 Level 3 . | . . . . . . . . Level 4 . | . . . . . . . . Level 5 . | . . . . . . . . High Security . | . . . . . . . . Max Security . | . . . . . . . . Squads Dispatched 13 | . 2 2 1 5 . 3 . Investigation 1 | . . . . 1 . . . Extermination 3 | . . . . 2 . 1 . Reinforcement 8 | . 2 2 1 2 . 1 . Assault . | . . . . . . . . Garrison 1 | . . . . . . 1 . Intercept . | . . . . . . . . Searches Triggered . | . . . . . . . . Construction Impeded . | . . . . . . . . Haulers Reinforced . | . . . . . . . . Active Scanning Responses . | . . . . . . . . Cargo Convoy Interrupts . | . . . . . . . . Stealth | -11 -10 -9 -8 -7 -7 -7 -7 --------- Run | Yrd Mat Mat Mat Fac Gar Fac Gar Distress Signals 7 | . . 3 3 . . 1 . Communications Jammed . | . . . . . . . . Distress Signals . | . . . . . . . . Times Spotted 180 | . 24 34 41 28 12 21 20 Peak Tracking Total 10 | . 3 5 6 4 3 8 10 Tactical Retreats 12 | . . . 4 3 2 1 2 Traps | -11 -10 -9 -8 -7 -7 -7 -7 ------- Run | Yrd Mat Mat Mat Fac Gar Fac Gar Traps Triggered 15 | . . 2 7 3 2 . 1 Indirectly . | . . . . . . . . Trap Hack Attempts 16 | . . . . . . . 16 Triggered . | . . . . . . . . Disarmed 1 | . . . . . . . 1 Reprogrammed . | . . . . . . . . Reused . | . . . . . . . . Traps Extracted . | . . . . . . . . Installed . | . . . . . . . . Triggered . | . . . . . . . . Machines | -11 -10 -9 -8 -7 -7 -7 -7 ---------- Run | Yrd Mat Mat Mat Fac Gar Fac Gar Machines Disabled 10 | . 2 2 . . 3 1 2 Max in Single Turn 1 | . 1 1 . . 1 1 1 Garrison Relay 5 | . . . . . 3 . 2 Phase Generator 1 | . . . . . 1 . . Machines Repaired . | . . . . . . . . Machines Dismantled . | . . . . . . . . Machines Sabotaged . | . . . . . . . . Overloaded Fab Kills . | . . . . . . . . Hacking | -11 -10 -9 -8 -7 -7 -7 -7 --------- Run | Yrd Mat Mat Mat Fac Gar Fac Gar Machines Accessed 37 | . 6 9 10 7 1 2 2 Terminals 35 | . 6 9 10 6 1 1 2 Fabricators . | . . . . . . . . Repair Stations . | . . . . . . . . Recycling Units . | . . . . . . . . Scanalyzers . | . . . . . . . . Garrison Access 2 | . . . . 1 . 1 . Total Hacks 96 | . 17 23 30 18 1 5 2 Successful 43 | . 7 8 15 9 . 3 1 Failed 52 | . 10 14 15 9 1 2 1 Catastrophic 12 | . 1 3 3 4 1 . . Database Lockouts 1 | . . 1 . . . . . Manual 67 | . 15 17 22 11 . 2 . Terminals 94 | . 17 23 30 17 1 4 2 Fabricators . | . . . . . . . . Repair Stations . | . . . . . . . . Recycling Units . | . . . . . . . . Scanalyzers . | . . . . . . . . Garrison Access 2 | . . . . 1 . 1 . Terminal Hacks 22 | . 3 6 6 4 . 2 1 Part Schematic 1 | . . . 1 . . . . Robot Analysis 6 | . 1 4 . 1 . . . Prototype ID Bank 1 | . . 1 . . . . . Level Access Points 1 | . 1 . . . . . . Branch Access Points 2 | . . 1 1 . . . . Garrison Index 1 | . . . . 1 . . . Unreport Threat 3 | . . . . 1 . 2 . Locate Traps 1 | . 1 . . . . . . Zone Layout 5 | . . . 4 1 . . . Garrison Registry 1 | . . . . . . . 1 Fabricator Hacks . | . . . . . . . . Repair Station Hacks . | . . . . . . . . Recycling Unit Hacks . | . . . . . . . . Scanalyzer . | . . . . . . . . Garrison Access Hacks 2 | . . . . 1 . 1 . Unlock Access 2 | . . . . 1 . 1 . Unauthorized Hacks 19 | . 4 2 9 4 . . . Terminals 19 | . 4 2 9 4 . . . Botnet 19 | . 4 2 9 4 . . . Fabricators . | . . . . . . . . Repair Stations . | . . . . . . . . Recycling Units . | . . . . . . . . Scanalyzers . | . . . . . . . . Garrison Access . | . . . . . . . . Data Cores Recovered 2 | . 1 . . 1 . . . Used . | . . . . . . . . Hacking Detections 32 | . 6 8 9 5 1 2 1 Full Trace Events 1 | . . . . 1 . . . Feedback Events . | . . . . . . . . Feedback Blocked . | . . . . . . . . Robot Schematics Acquired . | . . . . . . . . Robots Built . | . . . . . . . . Authchips . | . . . . . . . . Time . | . . . . . . . . Total Robot Build Rating . | . . . . . . . . Part Schematics Acquired 1 | . . . 1 . . . . Parts Built . | . . . . . . . . Authchips . | . . . . . . . . Time . | . . . . . . . . Total Part Build Rating . | . . . . . . . . Parts Repaired . | . . . . . . . . Time . | . . . . . . . . Parts Recycled . | . . . . . . . . Recycled Matter . | . . . . . . . . Retrieved Matter . | . . . . . . . . Retrieved Components . | . . . . . . . . Parts Scanalyzed . | . . . . . . . . Part Schematics Acquired . | . . . . . . . . Parts Damaged . | . . . . . . . . Bothacking | -11 -10 -9 -8 -7 -7 -7 -7 ------------ Run | Yrd Mat Mat Mat Fac Gar Fac Gar Used RIF Installer 2 | . . . . . 1 . 1 Threat Obfuscator 1 | . . . . . . . 1 Robots Hacked 6 | . . . . . . 3 3 Non-combat 1 | . . . . . . 1 . Combat 5 | . . . . . . 2 3 Robot Hacks Applied 6 | . . . . . . 3 3 relay_feed 1 | . . . . . . 1 . find_garrison 1 | . . . . . . 1 . overwrite_iff 1 | . . . . . . . 1 formatsys_high 3 | . . . . . . 1 2 Relay Couplers Released 17 | . . . . . 9 . 8 Machine Destruction 17 | . . . . . 9 . 8 Attached 4 | . . . . . . 2 2 Fabnet Peak Effective % . | . . . . . . . . Robots Rewired . | . . . . . . . . Allies Hacked . | . . . . . . . . Hacks Repelled . | . . . . . . . . Allies | -11 -10 -9 -8 -7 -7 -7 -7 -------- Run | Yrd Mat Mat Mat Fac Gar Fac Gar Total Allies 4 | . . . . . . 1 3 Largest Group 2 | . . . . . . 1 2 Highest-Rated Group 64 | . . . . . . 12 64 Highest-Rated Ally 32 | . . . . . . 12 32 Total Orders . | . . . . . . . . Ally Attacks 16 | . . . . . . 5 11 Total Damage 518 | . . . . . . 70 448 Kills 4 | . . . . . . 1 3 Allies Corrupted . | . . . . . . . . Allies Melted 2 | . . . . . 1 . 1 Intel | -11 -10 -9 -8 -7 -7 -7 -7 ------- Run | Yrd Mat Mat Mat Fac Gar Fac Gar Robot Analysis Total 5 | . 1 3 . 1 . . . Derelict Logs Recovered . | . . . . . . . . Drone Launches . | . . . . . . . . Drone Recoveries . | . . . . . . . . Exploration | -11 -10 -9 -8 -7 -7 -7 -7 ------------- Run | Yrd Mat Mat Mat Fac Gar Fac Gar Turns Passed 8918 | 143 973 1463 1959 1758 1200 876 546 Spaces Moved 4406 | 66 469 669 1034 1143 470 332 223 Core 15 | 11 . . . . 1 . 3 Treads 1622 | 55 469 669 429 . . . . Legs 253 | . . . . . 151 102 . Wheels 2516 | . . . 605 1143 318 230 220 Hover . | . . . . . . . . Flight . | . . . . . . . . Fastest Speed 50 | 50 160 160 105 120 120 116 50 Average Speed 157 | 158 160 168 140 123 226 209 143 Slowest Speed 1750 | 250 160 330 210 225 1750 330 195 Overloaded Moves . | . . . . . . . . Propulsion Burnouts . | . . . . . . . . Robots Hopped . | . . . . . . . . Cave-ins Triggered . | . . . . . . . . Exploration Rate (%) 45 | 4 90 68 72 35 49 10 39 Regions Visited 7 Branch Regions . Pre-discovered Areas . | . . . . . . . . Known Exits Taken 3 | . 1 . . 1 . 1 . Unknown Exits Taken 3 | 1 . 1 1 . . . . Scrap Searched . | . . . . . . . . Spaces Dug 7 | . 2 . . 5 . . . Terrain Destroyed 67 | . 38 . . 5 . 1 23 Melee 5 | . . . . 5 . . . Projectile 1 | . . . . . . 1 . AOE 61 | . 38 . . . . . 23 Terrain Rammed . | . . . . . . . . Walls Destroyed . | . . . . . . . . Machines Disabled . | . . . . . . . . Actions | -11 -10 -9 -8 -7 -7 -7 -7 --------- Run | Yrd Mat Mat Mat Fac Gar Fac Gar Total 5486 | 85 576 841 1338 1311 541 436 358 Wait 248 | . 21 38 112 24 4 29 20 Move 4401 | 65 468 668 1033 1143 469 332 223 Hop . | . . . . . . . . Pick Up 71 | 4 14 9 13 11 6 8 6 Fast Attach 62 | 7 . 11 25 6 4 4 5 Attach 53 | . . 7 6 11 9 4 16 Detach 31 | . . 3 6 5 6 4 7 Swap 38 | 1 7 5 5 9 1 7 3 Drop 50 | . 4 14 20 4 . 4 4 Fire 477 | 8 62 83 115 93 33 44 39 Melee 25 | . . . . 5 1 . 19 Ram 2 | . . . 2 . . . . Kick . | . . . . . . . . Crush 4 | . . 3 1 . . . . Escape Stasis 8 | . . . . . 8 . . Rewire . | . . . . . . . . Trap 16 | . . . . . . . 16 Miscellaneous . | . . . . . . . . Route ------- -11/Scrapyard -10/Materials (discovered 5 exits: *Mat x3 / [*Min x2]) -9/Materials (discovered 4 exits: *Mat x2 / *Min x2) -8/Materials (discovered 2 exits: *Fac x2) -7/Factory (discovered 2 exits: [*Fac] / Gar) -7/Garrison (discovered 2 exits: *Fac x2) -7/Factory -7/Garrison (discovered 4 exits: [*Fac x3] / [Fac]) History --------- Turn | Location | Event 29 | -11/Scrapyard | Discovered new exit (range 14) 144 | -11/Scrapyard | Entered Materials 314 | -10/Materials | Discovered new exit (range 5) 316 | -10/Materials | Build established: Mutant 500 | -10/Materials | Discovered new exit (range 7) 831 | -10/Materials | Discovered new exit (range 7) 905 | -10/Materials | Discovered new exit (range 16) 924 | -10/Materials | Identified exit to Materials 1117 | -10/Materials | Entered another Materials area 1117 | -9/Materials | Evolved 2 slots: Propulsion x1, Utility x1 1875 | -9/Materials | Discovered new exit (range 15) 1980 | -9/Materials | Identified exit to Mines 1994 | -9/Materials | Discovered new exit (range 12) 2243 | -9/Materials | Central database locked down 2492 | -9/Materials | Discovered new exit (range 9) 2580 | -9/Materials | Entered another Materials area 2580 | -8/Materials | Evolved 2 slots: Utility x2 3621 | -8/Materials | Discovered new exit (range 15) 4047 | -8/Materials | Discovered new exit (range 14) 4539 | -8/Materials | Entered Factory 4539 | -7/Factory | Evolved 2 slots: Utility x2 5129 | -7/Factory | Lost 3 parts (2n1u) 5480 | -7/Factory | Lost 3 parts (1n2w) 5890 | -7/Factory | Discovered new exit (range 11) 6297 | -7/Factory | Identified exit to Garrison 6297 | -7/Factory | Entered Garrison 6367 | -7/Garrison | Triggered checkpoint 6424 | -7/Garrison | Lost 4 parts (1n3u) 6424 | -7/Garrison | Garrison Relay disabled 6489 | -7/Garrison | Triggered checkpoint 6566 | -7/Garrison | Discovered new exit (range 12) 6625 | -7/Garrison | Triggered checkpoint 6633 | -7/Garrison | Phase Generator disabled 6649 | -7/Garrison | Triggered checkpoint 6659 | -7/Garrison | Triggered checkpoint 6694 | -7/Garrison | Installed Relay Interface Framework 6735 | -7/Garrison | Garrison Relay disabled 7175 | -7/Garrison | Build established: Scavenger-Mutant 7273 | -7/Garrison | Discovered new exit (range 8) 7327 | -7/Garrison | Triggered checkpoint 7410 | -7/Garrison | Garrison Relay disabled 7497 | -7/Garrison | Entered Factory 8219 | -7/Factory | Garrison activated, responded to threat 8373 | -7/Factory | Identified exit to Garrison 8373 | -7/Factory | Entered Garrison 8395 | -7/Garrison | Build established: Bothacker-Mutant 8412 | -7/Garrison | Discovered new exit (range 28) 8412 | -7/Garrison | Discovered new exit (range 49) 8412 | -7/Garrison | Discovered new exit (range 52) 8412 | -7/Garrison | Discovered new exit (range 55) 8478 | -7/Garrison | Triggered checkpoint 8513 | -7/Garrison | Garrison Relay disabled 8645 | -7/Garrison | Triggered checkpoint 8676 | -7/Garrison | Triggered checkpoint 8676 | -7/Garrison | Triggered checkpoint 8690 | -7/Garrison | Core integrity fell below 50% 8696 | -7/Garrison | Heavy support dispatched to Factory 8732 | -7/Garrison | Lost 8 parts (1p2n3u2w) 8738 | -7/Garrison | Destroyed 10 combat bots 8777 | -7/Garrison | Core integrity fell below 20% 8821 | -7/Garrison | Lost 3 parts (2n1w) 8857 | -7/Garrison | Triggered checkpoint 8884 | -7/Garrison | Expanded RIF knowledge: Threat Obfuscation 8908 | -7/Garrison | Garrison Relay disabled 8916 | -7/Garrison | Released all parts (6) 8919 | -7/Garrison | Destroyed by Y-54 Guardian with Flak Gun Last Messages --------------- >>overwrite_iff Rewriting IFF filter. 08902_ G-47 Trooper destroyed. 08905_ Jacked Y-54 Guardian... 08908_ Garrison Relay disabled. 08908_ Relay Coupler [Hunter] tumbles out of relay unit. 08908_ Relay Coupler [NC] tumbles out of relay unit. 08908_ Relay Coupler [Sentry] tumbles out of relay unit. 08908_ Relay Coupler [Swarmer] tumbles out of relay unit. 08916_ Grenade Launcher destroyed. 08916_ Arm. Wheel destroyed. 08916_ Released Relay Coupler [Grunt]. 08916_ Released Core Shielding. 08916_ Released Imp. Signal Interpreter. 08916_ Released Huge Storage Unit. 08916_ Insulated Plating crushed and broken. 08916_ Released Core Analyzer. 08916_ Released Relay Coupler [NC]. 08916_ Dropped Com. Matter Pod. 08918_ Acquired Imp. Signal Interpreter. Map ----- +----------------------------------------------------+ | ?????????????????????????????????????????? | | ?????????????????????????????????????????? | | ?????????????????????????????????????????? | | ?????????????????????????????????????????? | | ?????????????????????????????????????????? | | ?????????????????????????????????????????? | | ?????????????????????????????????????????? | | ?????????????????????????????????????????? | | ?????????????????????????????????????????? | | ??????######?????????????????????????????? | | ??????# #?????????????????????????????? | | ??????# < #?????????????????????????????? | | ??????# #?????????????????????????????? | | ??????# ###?????????????????????????????? | | ??????# #???????????????????????????????? | | ??????# #???????????????????????????????? | | ??##### #???????????????????????????????? | | ??# + #???????????????????????????????? | | ??# ### #???????????????????????????????? | | ??# #?# #???????????????????????????????? | | ??# #?# #???????????#####???????????????? | | ###+### #######?????#"""#???????????????? | | + #?????#"!"#???????????????? | | [#### #?????#"!"###?????????????? | | ###+##### #??# #???# #"!"# #?????????????? | | ??# #???#%#?##+##??# !!/!@ #?????????????? | | ??# #???# #?# #??##!!=!! #?????????????? | | ??# #???# ### ##### Y ##?????????????? | | ### #???# % #?????????????? | | #??####### ####### ###?????????????? | | #####??# #??# #????#" " #??????????????? | | ???????## #??# #????#######??????????????? | | ????????# #??# #?????????????????????????? | | ????????# #??# #?????????????????????????? | | ######### #### #?????????????????????????? | | + ######????????????????????? | | ### ########## #!!!!######???????????????? | | ??# #????????# ^ "#???????????????? | | ### #????????###!!!!##"T"#???????????????? | | + #??????????###########???????????????? | | #######?????????????????????????????????? | | + #?????????????????????????????????? | | ##### #?????????????????????????????????? | | ##???# #?????????????????????????????????? | | ######+##????????????????????????????????? | | #????????????????????????????????? | | #????????????????????????????????? | | ##+### #????????????????????????????????? | | ## #?# #????????????????????????????????? | | ## ### #????????????????????????????????? | +----------------------------------------------------+ Best States ------------- Heat Dissipation 48 Energy Generation 16 Energy Capacity 290 Matter Stores 300 Matter Capacity 300 Sight Range 16 Terrain Scan Density 10 Armor Coverage 675 Resistance: EM 15 Core Shielding 20 Propulsion Shielding 66 Weapon Shielding 66 Evasion (%) 40 Targeting Accuracy 5 Core Analysis 6 Recoil Reduction 3 Particle Charging 15 Offensive Hacking 10 Relay Coupler Types 2 Relay Coupler Value 55 Item Schematics ----------------- Huge Storage Unit | -8/Materials | Hacked Robot Schematics ------------------ None Fabricated ------------ Nothing Alien Tech Used ----------------- None Achievements -------------- None Challenges ------------ None Game ------ Seed MultitargetingControlScrap Manual? 0 Play Time 01:19:41 Cumulative 141.8 hours Start 2024.09.23 @ 16:09:50 End 2024.09.23 @ 17:56:16 Sessions 1 Manual Loads 0 Difficulty Rogue Special Mode None Game No. 106 Rogue 106 Adventurer 0 Explorer 0 Win Type - Total 6 Types 5/0/1/0/0/0/0/0/0 Lore% 43 Gallery% 55 Achievement% 53 Wizard Run 0 Options --------- Layout 0 ASCII 0 Keyboard 1 Movement Numpad Keybinds 0 Fullscreen 2 Font 18/X11 Map View 76x50 Zoom Use 0% Tactical HUD 1 Map Filters NONE Filters NONE Steam 1 RUN: 886b6e81-eb68-4d43-bb30-2d8f3a6f1dbc